Cogmind - Beta 13 @@@ ROGUE MODE // 2024.04.22 @ 21:08:57 Player: Gold Spoon Result: Self-destructed Performance ------------- Evolutions (2) 1000 Regions Visited (6) 1200 Robots Destroyed (25) 125 Value Destroyed (570) 570 Prototype IDs (24) 480 Alien Tech Used (0) 0 Bonus (278) 278 TOTAL SCORE: 3653 Bonus ------- Follower Combat Kills 190 Aligned with FarCom 300 Friendly Fire -212 Cogmind --------- Core Integrity 361/550 Matter 300/300 Energy 29/265 System Corruption 10% Temperature Cool (20) Movement Treading (240) Ox1 Location -8/Storage Parts ------- > --- POWER (1) -------- Improved Ion Engine > --- PROPULSION (3) --- Light Treads > --- UTILITY (5) ------ Medium Storage Unit Melee Analysis Suite Hardened Light Armor Plating > --- WEAPON (2) ------- Latent Energy Streamer > --- INVENTORY (10) --- Ion Engine Ion Engine Improved Heat Sink Assault Rifle Assault Rifle Rocket Launcher Peak State ------------ > --- POWER ------------ Improved Ion Engine > --- PROPULSION ------- Light Treads > --- UTILITY ---------- Medium Storage Unit Melee Analysis Suite Hardened Light Armor Plating Hardened Light Armor Plating Hardened Light Armor Plating > --- WEAPON ----------- Advanced EMP Blaster Katana > --- INVENTORY -------- Ion Engine Ion Engine Improved Heat Sink Latent Energy Streamer Assault Rifle Assault Rifle Rocket Launcher [Rating: 21] Favorites ----------- Power Ion Engine Engine Ion Engine Propulsion Light Treads Treads Light Treads Utility Small Storage Unit Storage Small Storage Unit Processor Melee Analysis Suite Protection Hardened Light Armor Plating Weapon Assault Rifle Energy Cannon Latent Energy Streamer Ballistic Gun Assault Rifle Launcher Advanced EMP Blaster Slashing Weapon Katana Build | -11 -10 -10 -10 -9 -8 -8 ------- Run | Yrd Mat Min Exi Min Mat Sto Slots Evolved 4 | . . . . . 4 . Power . | . . . . . . . Propulsion 1 | . . . . . 1 . Utility 3 | . . . . . 3 . Weapon . | . . . . . . . Parts Attached 20 | 6 . . 1 3 . 10 Power 2 | 1 . . . 1 . . Engine 2 | 1 . . . 1 . . Core . | . . . . . . . Reactor . | . . . . . . . Propulsion 4 | 2 . . . 1 . 1 Treads 4 | 2 . . . 1 . 1 Leg . | . . . . . . . Wheel . | . . . . . . . Hover . | . . . . . . . Flight . | . . . . . . . Utility 7 | 1 . . 1 . . 5 Device . | . . . . . . . Storage 2 | 1 . . 1 . . . Processor 1 | . . . . . . 1 Hackware . | . . . . . . . Protection 4 | . . . . . . 4 Artifact . | . . . . . . . Weapon 7 | 2 . . . 1 . 4 Energy Gun . | . . . . . . . Energy Cannon 1 | . . . . . . 1 Ballistic Gun 3 | 2 . . . 1 . . Ballistic Cannon . | . . . . . . . Launcher 1 | . . . . . . 1 Special Weapon . | . . . . . . . Impact Weapon . | . . . . . . . Slashing Weapon 2 | . . . . . . 2 Piercing Weapon . | . . . . . . . Special Melee Weapon . | . . . . . . . Unidentified Prototypes 1 | . . . . . . 1 Parts Lost 7 | . . . . 3 . 4 Power . | . . . . . . . Propulsion 3 | . . . . 2 . 1 Utility 2 | . . . . . . 2 Weapon 2 | . . . . 1 . 1 Highest Loss Streak 4 | . . . . 2 . 4 To Critical Strikes . | . . . . . . . Average Slot Usage (%) 79 | . 85 85 85 78 45 67 Engine 12 | . 14 14 14 14 9 9 Treads 22 | . 28 28 28 21 9 9 Storage 12 | . 14 14 14 14 9 9 Processor 1 | . . . . . . 8 Protection 4 | . . . . . . 21 Ballistic Gun 22 | . 28 28 28 27 18 1 Slashing Weapon 1 | . . . . . . 6 Naked Turns . | . . . . . . . Heaviest Build 34 | 14 14 14 19 21 21 34 Greatest Support 40 | 40 40 40 40 40 20 40 Greatest Overweight (x) 1 | . . . . 1 1 1 Average Overweight (x) . | . . . . . 1 . Largest Inventory Capacity 10 | 8 8 8 10 10 10 10 Average Capacity 8 | 6 8 8 8 10 10 10 Most Carried 10 | 4 2 3 5 8 7 10 Average Carried 4 | . 1 2 3 7 7 6 Final Capacity 10 | 8 8 8 10 10 10 10 Final Carried 7 | . 2 3 4 7 7 6 Class Distribution -------------------- 87% | Mutant 12% | Scavenger-Mutant Dominant Class ---------------- Mutant | -10/Materials Mutant | -10/Mines Mutant | -10/Exiles Mutant | -9/Mines Mutant | -8/Materials Scavenger-Mutant | -8/Storage Resources | -11 -10 -10 -10 -9 -8 -8 ----------- Run | Yrd Mat Min Exi Min Mat Sto Matter Collected 649 | 169 175 136 . 61 . 108 Remotely . | . . . . . . . Salvage Created 973 | . 284 149 . 20 . 520 Parts 62 | . 21 14 . . . 27 Haulers Intercepted . | . . . . . . . Recyclers Shooed . | . . . . . . . Parts Field Recycled . | . . . . . . . Retrieved Matter . | . . . . . . . Parts Self-Destructed . | . . . . . . . Prevented . | . . . . . . . Kills | -11 -10 -10 -10 -9 -8 -8 ------- Run | Yrd Mat Min Exi Min Mat Sto Combat Hostiles Destroyed 21 | . 7 7 . 2 . 5 Guns 16 | . 7 7 . 2 . . AOE 3 | . . . . . . 3 Classes Destroyed 7 | . 3 . . 1 . 3 Builder 2 | . . . . . . 2 Recycler 2 | . 1 . . . . 1 Watcher 1 | . . . . . . 1 Swarmer 9 | . 3 6 . . . . Grunt 9 | . 4 1 . . . 4 Brawler 1 | . . . . . . 1 Assembled 2 | . . . . 2 . . Thug 1 | . . . . . . 1 Best Kill Streak 6 | . 6 3 . 1 . 6 Combat Bots Only 5 | . 5 3 . 1 . 5 Max Kills in Single Turn 5 | . 1 2 . 1 . 5 Gunslinging 1 | . . 1 . . . . Exploded 3 | . . . . . . 3 Melee . | . . . . . . . Uniques/NPCs Destroyed . | . . . . . . . Combat | -11 -10 -10 -10 -9 -8 -8 -------- Run | Yrd Mat Min Exi Min Mat Sto Hostile Shots Fired 141 | . 40 26 . 9 . 66 Missed 25 | . 11 6 . 2 . 6 Damage Taken 1743 | . 306 192 . 148 . 1097 Core 327 | . 46 59 . 33 . 189 Absorbed by Shields . | . . . . . . . Core Remaining (%) 72 | 100 . . . 44 . . Volleys Fired 52 | . 23 16 . 8 . 5 Largest 2 | . 2 2 . 2 . 1 Hottest 60 | . 40 40 . 40 . 60 Shots Fired 98 | . 46 32 . 15 . 5 Gun 93 | . 46 32 . 15 . . Cannon 5 | . . . . . . 5 Launcher . | . . . . . . . Special . | . . . . . . . Kinetic 93 | . 46 32 . 15 . . Thermal . | . . . . . . . Explosive . | . . . . . . . Electromagnetic 5 | . . . . . . 5 Robot Hit Streak 9 | . 9 7 . 6 . 4 Robot Miss Streak 4 | . 4 2 . 3 . 1 Penetration Max . | . . . . . . . Secondary Targets 2 | . . 2 . . . . Max Gunslinging Chain 1 | . . 1 . . . . Shots Hit Robots 69 | . 30 19 . 9 . 11 Core Hits 41 | . 13 8 . 5 . 15 Critical Kills . | . . . . . . . Critical Parts Destroyed 1 | . 1 . . . . . Critical Strikes 1 | . 1 . . . . . Destroy 1 | . 1 . . . . . Melee Attacks 10 | . . . . . . 10 Impact . | . . . . . . . Slashing 10 | . . . . . . 10 Piercing . | . . . . . . . Sneak Attacks . | . . . . . . . Combat Hostiles . | . . . . . . . Follow-up Attacks . | . . . . . . . Damage Inflicted 1894 | . 421 252 . 106 . 1115 Guns 764 | . 421 237 . 106 . . Cannons 27 | . . . . . . 27 Explosions 872 | . . . . . . 872 Melee 216 | . . . . . . 216 Ramming 15 | . . 15 . . . . Kinetic 764 | . 421 237 . 106 . . Thermal 65 | . . . . . . 65 Explosive . | . . . . . . . Electromagnetic 834 | . . . . . . 834 Impact . | . . . . . . . Slashing 216 | . . . . . . 216 Piercing . | . . . . . . . Highest Corruption 10 | . . . . . . 10 Average Corruption 6 | . . . . . . 6 Corruption Purged . | . . . . . . . Corruption Blocked . | . . . . . . . Overload Shots . | . . . . . . . Overflow Damage . | . . . . . . . Projectiles . | . . . . . . . Explosions . | . . . . . . . Melee . | . . . . . . . Knockbacks . | . . . . . . . Impact . | . . . . . . . Kinetic . | . . . . . . . Secondary . | . . . . . . . Self-Inflicted Damage 120 | . . . . . . 120 Shots 2 | . . . . . . 2 Rammed 3 | . . 3 . . . . Targets Rammed 3 | . . 3 . . . . Kicked . | . . . . . . . Crushed . | . . . . . . . Highest Temperature 214 | . 20 2 . . . 214 Average Temperature 81 | . 5 2 . . . 102 Received Heat Transfer 738 | . 144 36 . . . 558 Siege Activations . | . . . . . . . Robots Corrupted 2 | . . . . . . 2 Combat Hostiles 2 | . . . . . . 2 Parts Fried 2 | . . . . . . 2 Impact Corruptions . | . . . . . . . Robots Melted . | . . . . . . . Combat Hostiles . | . . . . . . . Parts Melted . | . . . . . . . Heat Transferred 100 | . . . . . . 100 Parts Sabotaged . | . . . . . . . Parts Stolen . | . . . . . . . Parts Stripped . | . . . . . . . Power Chain Reactions 1 | . . . . . . 1 Latent Energy Used 390 | . . . . . . 390 LE Corruption 7 | . . . . . . 7 Alert | -11 -10 -10 -10 -9 -8 -8 ------- Run | Yrd Mat Min Exi Min Mat Sto Peak Influence 192 | . 180 176 . 15 . 192 Initial 70 | . . 70 . . . . Average 54 | . 106 96 . . . 19 Maximum Alert Level . | . . . . . . . Low Security (%) 100 | 100 100 100 . 100 100 100 Level 1 . | . . . . . . . Level 2 . | . . . . . . . Level 3 . | . . . . . . . Level 4 . | . . . . . . . Level 5 . | . . . . . . . High Security . | . . . . . . . Max Security . | . . . . . . . Squads Dispatched 2 | . . . . . . 2 Investigation . | . . . . . . . Extermination . | . . . . . . . Reinforcement . | . . . . . . . Assault 2 | . . . . . . 2 Garrison . | . . . . . . . Intercept . | . . . . . . . Searches Triggered . | . . . . . . . Construction Impeded . | . . . . . . . Haulers Reinforced . | . . . . . . . Active Scanning Responses . | . . . . . . . Cargo Convoy Interrupts . | . . . . . . . Stealth | -11 -10 -10 -10 -9 -8 -8 --------- Run | Yrd Mat Min Exi Min Mat Sto Distress Signals . | . . . . . . . Communications Jammed . | . . . . . . . Distress Signals . | . . . . . . . Times Spotted 36 | . 9 9 . 5 . 13 Peak Tracking Total 9 | . 3 3 . 2 . 9 Tactical Retreats 2 | . . . . 1 . 1 Traps | -11 -10 -10 -10 -9 -8 -8 ------- Run | Yrd Mat Min Exi Min Mat Sto Traps Triggered 1 | . . . . . . 1 Indirectly . | . . . . . . . Trap Hack Attempts . | . . . . . . . Triggered . | . . . . . . . Disarmed . | . . . . . . . Reprogrammed . | . . . . . . . Reused . | . . . . . . . Traps Extracted . | . . . . . . . Installed . | . . . . . . . Triggered . | . . . . . . . Machines | -11 -10 -10 -10 -9 -8 -8 ---------- Run | Yrd Mat Min Exi Min Mat Sto Machines Disabled 1 | . . . . . . 1 Max in Single Turn . | . . . . . . . Garrison Access 1 | . . . . . . 1 Machines Repaired . | . . . . . . . Machines Dismantled . | . . . . . . . Machines Sabotaged . | . . . . . . . Overloaded Fab Kills . | . . . . . . . Hacking | -11 -10 -10 -10 -9 -8 -8 --------- Run | Yrd Mat Min Exi Min Mat Sto Machines Accessed 3 | . . . 1 . 1 1 Terminals . | . . . . . . . Fabricators . | . . . . . . . Repair Stations . | . . . . . . . Recycling Units . | . . . . . . . Scanalyzers . | . . . . . . . Garrison Access 2 | . . . . . 1 1 Total Hacks 8 | . . . 1 . 5 2 Successful 2 | . . . 1 . . 1 Failed 6 | . . . . . 5 1 Catastrophic 2 | . . . . . 1 1 Database Lockouts . | . . . . . . . Manual 1 | . . . 1 . . . Terminals . | . . . . . . . Fabricators . | . . . . . . . Repair Stations . | . . . . . . . Recycling Units . | . . . . . . . Scanalyzers . | . . . . . . . Garrison Access 7 | . . . . . 5 2 Terminal Hacks 1 | . . . 1 . . . Derelict Proto ID Bank 1 | . . . 1 . . . Fabricator Hacks . | . . . . . . . Repair Station Hacks . | . . . . . . . Recycling Unit Hacks . | . . . . . . . Scanalyzer . | . . . . . . . Garrison Access Hacks 1 | . . . . . . 1 Seal Access 1 | . . . . . . 1 Unauthorized Hacks . | . . . . . . . Terminals . | . . . . . . . Fabricators . | . . . . . . . Repair Stations . | . . . . . . . Recycling Units . | . . . . . . . Scanalyzers . | . . . . . . . Garrison Access . | . . . . . . . Data Cores Recovered . | . . . . . . . Used . | . . . . . . . Hacking Detections 2 | . . . . . 1 1 Full Trace Events 1 | . . . . . 1 . Feedback Events . | . . . . . . . Feedback Blocked . | . . . . . . . Robot Schematics Acquired . | . . . . . . . Robots Built . | . . . . . . . Authchips . | . . . . . . . Time . | . . . . . . . Total Robot Build Rating . | . . . . . . . Part Schematics Acquired . | . . . . . . . Parts Built . | . . . . . . . Authchips . | . . . . . . . Time . | . . . . . . . Total Part Build Rating . | . . . . . . . Parts Repaired . | . . . . . . . Time . | . . . . . . . Parts Recycled . | . . . . . . . Recycled Matter . | . . . . . . . Retrieved Matter . | . . . . . . . Retrieved Components . | . . . . . . . Parts Scanalyzed . | . . . . . . . Part Schematics Acquired . | . . . . . . . Parts Damaged . | . . . . . . . Bothacking | -11 -10 -10 -10 -9 -8 -8 ------------ Run | Yrd Mat Min Exi Min Mat Sto Used RIF Installer . | . . . . . . . Robots Hacked . | . . . . . . . Non-combat . | . . . . . . . Combat . | . . . . . . . Robot Hacks Applied . | . . . . . . . Relay Couplers Released . | . . . . . . . Fabnet Peak Effective % . | . . . . . . . Robots Rewired . | . . . . . . . Allies Hacked . | . . . . . . . Hacks Repelled . | . . . . . . . Allies | -11 -10 -10 -10 -9 -8 -8 -------- Run | Yrd Mat Min Exi Min Mat Sto Total Allies 3 | . . 1 . . . 2 Largest Group 2 | . . 1 . . . 2 Highest-Rated Group 62 | . . 31 . . . 62 Highest-Rated Ally 31 | . . 31 . . . 31 Total Orders . | . . . . . . . Ally Attacks 22 | . . 6 . . . 16 Total Damage 355 | . . 103 . . . 252 Kills 6 | . . 3 . . . 3 Allies Corrupted . | . . . . . . . Allies Melted . | . . . . . . . Intel | -11 -10 -10 -10 -9 -8 -8 ------- Run | Yrd Mat Min Exi Min Mat Sto Robot Analysis Total . | . . . . . . . Derelict Logs Recovered 2 | . . 1 . 1 . . Drone Launches . | . . . . . . . Drone Recoveries . | . . . . . . . Exploration | -11 -10 -10 -10 -9 -8 -8 ------------- Run | Yrd Mat Min Exi Min Mat Sto Turns Passed 2440 | 57 194 832 436 413 72 436 Spaces Moved 1237 | 35 77 473 271 206 31 144 Core 9 | 9 . . . . . . Treads 1228 | 26 77 473 271 206 31 144 Legs . | . . . . . . . Wheels . | . . . . . . . Hover . | . . . . . . . Flight . | . . . . . . . Fastest Speed 50 | 50 160 160 160 160 240 160 Average Speed 174 | 131 160 160 160 186 240 236 Slowest Speed 240 | 160 160 160 160 240 240 240 Overloaded Moves . | . . . . . . . Propulsion Burnouts . | . . . . . . . Robots Hopped . | . . . . . . . Cave-ins Triggered . | . . . . . . . Exploration Rate (%) 38 | 3 18 97 64 60 4 21 Regions Visited 6 Branch Regions 4 Pre-discovered Areas 1 | . . 1 . . . . Known Exits Taken . | . . . . . . . Unknown Exits Taken 6 | 1 1 1 1 1 1 . Scrap Searched 2 | . . 1 . 1 . . Spaces Dug . | . . . . . . . Terrain Destroyed 21 | . . . . . . 21 Melee . | . . . . . . . Projectile . | . . . . . . . AOE 21 | . . . . . . 21 Terrain Rammed . | . . . . . . . Walls Destroyed . | . . . . . . . Machines Disabled . | . . . . . . . Actions | -11 -10 -10 -10 -9 -8 -8 --------- Run | Yrd Mat Min Exi Min Mat Sto Total 1408 | 46 102 515 274 221 30 220 Wait 64 | . 1 21 . . . 42 Move 1231 | 34 76 472 270 205 30 144 Hop . | . . . . . . . Pick Up 24 | 6 2 2 2 5 . 7 Fast Attach . | . . . . . . . Attach 17 | 6 . . . 2 . 9 Detach 1 | . . . . . . 1 Swap 3 | . . . 1 1 . 1 Drop 3 | . . 1 1 . . 1 Fire 52 | . 23 16 . 8 . 5 Melee 10 | . . . . . . 10 Ram . | . . . . . . . Kick . | . . . . . . . Crush 3 | . . 3 . . . . Escape Stasis . | . . . . . . . Rewire . | . . . . . . . Trap . | . . . . . . . Miscellaneous . | . . . . . . . Route ------- -11/Scrapyard -10/Materials -10/Mines (discovered 3 exits: [*Mat x2] / *Exi) -10/Exiles -9/Mines -8/Materials -8/Storage History --------- Turn | Location | Event 37 | -11/Scrapyard | Discovered new exit (range 12) 58 | -11/Scrapyard | Entered Materials 214 | -10/Materials | Discovered new exit (range 8) 252 | -10/Materials | Entered Mines 255 | -10/Mines | Received a Mining Laser from a helpful Derelict 306 | -10/Mines | Build established: Mutant 499 | -10/Mines | Discovered new exit (range 9) 637 | -10/Mines | Received a Rocket Launcher from a helpful Derelict 678 | -10/Mines | Discovered new exit (range 13) 750 | -10/Mines | Learned location of Zion (-6) 1078 | -10/Mines | Deemed a non-threat by the Exiles lab entrance 1078 | -10/Mines | Discovered new exit (range 5) 1084 | -10/Mines | Entered Exiles 1124 | -10/Exiles | Met 8R-AWN 1150 | -10/Exiles | Met EX-HEX 1196 | -10/Exiles | Met EX-BIN 1214 | -10/Exiles | Aligned with FarCom system 1216 | -10/Exiles | Given EX-Vault access code 1252 | -10/Exiles | Opened EX-Vault 1262 | -10/Exiles | Found Latent Energy Streamer 1297 | -10/Exiles | Warned to stay clear of 0b10 Research branches 1318 | -10/Exiles | Exiles lab attacked by MAIN.C 1503 | -10/Exiles | Discovered new exit (range 14) 1520 | -10/Exiles | Left Exiles lab with Latent Energy Streamer 1520 | -10/Exiles | Entered Mines 1524 | -9/Mines | Core integrity fell below 50% 1565 | -9/Mines | Met a Derelict bent on vengeance 1581 | -9/Mines | Learned Materials garrison access intel 1637 | -9/Mines | Assembled infested the area 1642 | -9/Mines | Assisted by a Guerilla fighting off Assembled 1904 | -9/Mines | Discovered new exit (range 12) 1933 | -9/Mines | Entered Materials 1933 | -8/Materials | Evolved 4 slots: Propulsion x1, Utility x3 1933 | -8/Materials | Discovered new exit (range 15) 1934 | -8/Materials | Loaded intel: 1 garrison access location 2005 | -8/Materials | Entered Storage 2253 | -8/Storage | Met a pair of Derelict thieves 2407 | -8/Storage | Lost 4 parts (1n2u1w) 2440 | -8/Storage | System corruption reached 10% 2441 | -8/Storage | Self-destructed Last Messages --------------- Particle Gun fried. Acquired 19 matter. Acquired 57 matter. M-28 Smith repairs Ion Engine. M-28 Smith repairs Lgt. Treads. Acquired 2 matter. U-05 Engineer repairs door. U-05 Engineer lays Concrete. U-05 Engineer builds a Wall. U-05 Engineer lays Concrete. U-05 Engineer builds a Wall. U-05 Engineer lays Concrete. U-05 Engineer builds a Door. U-05 Engineer lays Concrete. U-05 Engineer builds a Wall. U-05 Engineer lays Concrete. Door malfunctions. Chain reaction triggered in Corrupted Rnf. Ion Engine. U-05 Engineer destroyed. Map ----- +----------------------------------------------------+ | ??# ###################### | | ??# #??######??????????????? | | ??#^^ #### ] ]#??????????????? | | ??# ##T# ]] #??????????????? | | ??# # " #??????????????? | | ??# + ]#??????????????? | | ??# # " ] #??????????????? | | ??# # # ]]#??????????????? | | ??# #########??????????????? | | ??# #??????????????????????? | | ??# ###############????????? | | ??# !# """"" """"" #????????? | | ??# =%# """ """"" #????????? | | ??# #== " """"" #????????? | | ??# %#[% #????????? | | ??# =%/== = * #????????? | | ??#=%*# %=%[%! #????????? | | ??# [%* "=##/#######????????? | | ??#=%!! # ! #?????Y???????? | | ??# |g # !% #?????????????? | | ??## #### ! #?????????????? | | ????# ???# #?????????????? | | ????# #???## ##?????????????? | | ?####/###### #??????????????? | | # # #??????????????? | | # @ # #??????????????? | | # # +??????????????? | | # a k # ???????????????? | | # k / # ???????????????? | | # % ! / ???????????????? | | # ] *# #??????????????? | | ############ #??????????????? | | ???????????# T#?????????????? | | ???????????# ???????????????? | | ?????????????????????????????? | | ?????????????????????????????? | | ?????????????????????????????? | | ?????????????????????????????? | | ?????????????????????????????? | | ?????????????????????????????? | | ?????????????????????????????? | | ?????????????????????????????? | | ?????????????????????????????? | | ?????????????????????????????? | | ?????????????????????????????? | | ?????????????????????????????? | | ?????????????????????????????? | | | | | | | +----------------------------------------------------+ Best States ------------- Heat Dissipation 31 Energy Generation 12 Energy Capacity 265 Matter Stores 300 Matter Capacity 300 Sight Range 16 Terrain Scan Density 10 Armor Coverage 450 Evasion (%) 50 Melee Accuracy 5 Recoil Reduction 2 Item Schematics ----------------- None Robot Schematics ------------------ None Fabricated ------------ Nothing Alien Tech Used ----------------- None Achievements -------------- None Challenges ------------ None Game ------ Seed RelayFactoryClaws Manual? 0 Play Time 00:14:56 Cumulative 16.9 hours Start 2024.04.22 @ 20:56:51 End 2024.04.22 @ 21:08:57 Sessions 1 Manual Loads 0 Difficulty Rogue Special Mode None Game No. 27 Rogue 25 Adventurer 2 Explorer 0 Win Type - Total 0 Types 0/0/0/0/0/0/0/0/0 Lore% 22 Gallery% 18 Achievement% 18 Wizard Run 0 Options --------- Layout 1 ASCII 0 Keyboard 0 Movement Mouse Keybinds 0 Fullscreen 1 Font 24/Smallcaps Map View 50x40 Zoom Use 0% Tactical HUD 0 Map Filters NONE Filters NONE Steam 1 RUN: c090d235-36bb-492f-9572-273ac8cdfdc8